[Event "January 2 Late 2024"]
[Site "https://www.chess.com"]
[Date "2024.01.02"]
[Round "3"]
[White "Gonzalez Zharikov, Andrey"]
[Black "Kozin, Yuri"]
[Result "0-1"]
[Board "192"]
[TimeControl "180+1"]
[WhiteFideId "5145287"]
[BlackFideId "4129920"]
[WhiteElo "2286"]
[BlackElo "2607"]
[WhiteTeam "MEX"]
[BlackTeam "RUS"]
[WhiteClock "0:00:10"]
[BlackClock "0:01:19"]

1. e4 {[%clk 0:03:00]}  c5 {[%clk 0:02:59]} 2. Nf3 {[%clk 0:03:00]}  e6 {[%clk 0:02:59]} 3. d4 {[%clk 0:03:00]}  cxd4 {[%clk 0:03:00]} 4. Nxd4 {[%clk 0:03:01]}  Nf6 {[%clk 0:03:01]} 5. Nc3 {[%clk 0:03:01]}  d6 {[%clk 0:03:01]} 6. Be2 {[%clk 0:02:59]}  Be7 {[%clk 0:03:01]} 7. O-O {[%clk 0:02:58]}  O-O {[%clk 0:03:00]} 8. Kh1 {[%clk 0:02:56]}  a6 {[%clk 0:02:59]} 9. a4 {[%clk 0:02:55]}  Qc7 {[%clk 0:02:59]} 10. f4 {[%clk 0:02:55]}  Nc6 {[%clk 0:03:00]} 11. Bf3 {[%clk 0:02:51]}  Nxd4 {[%clk 0:02:58]} 12. Qxd4 {[%clk 0:02:51]}  e5 {[%clk 0:02:59]} 13. Qd1 {[%clk 0:02:48]}  exf4 {[%clk 0:02:58]} 14. Bxf4 {[%clk 0:02:47]}  Be6 {[%clk 0:02:59]} 15. Qe1 {[%clk 0:02:23]}  Nd7 {[%clk 0:02:54]} 16. Rd1 {[%clk 0:02:13]}  Ne5 {[%clk 0:02:53]} 17. Qg3 {[%clk 0:02:06]}  Rad8 {[%clk 0:02:43]} 18. Bg5 {[%clk 0:01:26]}  Bxg5 {[%clk 0:02:37]} 19. Qxg5 {[%clk 0:01:25]}  h6 {[%clk 0:02:36]} 20. Qg3 {[%clk 0:01:25]}  Qc5 {[%clk 0:02:29]} 21. Qf2 {[%clk 0:00:37]}  Qb4 {[%clk 0:02:25]} 22. Rb1 {[%clk 0:00:36]}  Rc8 {[%clk 0:02:20]} 23. Rfd1 {[%clk 0:00:36]}  Rfd8 {[%clk 0:02:15]} 24. Qd4 {[%clk 0:00:36]}  Rc4 {[%clk 0:02:08]} 25. Qd2 {[%clk 0:00:36]}  b5 {[%clk 0:02:05]} 26. axb5 {[%clk 0:00:35]}  axb5 {[%clk 0:02:06]} 27. Nd5 {[%clk 0:00:30]}  Qxd2 {[%clk 0:02:04]} 28. Rxd2 {[%clk 0:00:30]}  Bxd5 {[%clk 0:02:05]} 29. exd5 {[%clk 0:00:28]}  b4 {[%clk 0:02:03]} 30. Be2 {[%clk 0:00:27]}  Rc5 {[%clk 0:02:00]} 31. Re1 {[%clk 0:00:25]}  Rdc8 {[%clk 0:02:00]} 32. Bd1 {[%clk 0:00:25]}  Ra8 {[%clk 0:01:54]} 33. b3 {[%clk 0:00:23]}  Raa5 {[%clk 0:01:54]} 34. Bf3 {[%clk 0:00:19]}  Ra2 {[%clk 0:01:54]} 35. Be4 {[%clk 0:00:19]}  g6 {[%clk 0:01:50]} 36. Kg1 {[%clk 0:00:17]}  Kg7 {[%clk 0:01:50]} 37. h3 {[%clk 0:00:15]}  f5 {[%clk 0:01:49]} 38. Bd3 {[%clk 0:00:13]}  Nxd3 {[%clk 0:01:49]} 39. Rxd3 {[%clk 0:00:13]}  Rcxc2 {[%clk 0:01:46]} 40. Rg3 {[%clk 0:00:14]}  Re2 {[%clk 0:01:45]} 41. Rc1 {[%clk 0:00:13]}  Rad2 {[%clk 0:01:40]} 42. Rc7+ {[%clk 0:00:12]}  Kf6 {[%clk 0:01:40]} 43. Rh7 {[%clk 0:00:12]}  f4 {[%clk 0:01:29]} 44. Rg4 {[%clk 0:00:10]}  h5 {[%clk 0:01:26]} 45. Rxf4+ {[%clk 0:00:10]}  Kg5 {[%clk 0:01:27]} 46. g3 {[%clk 0:00:09]}  Rg2+ {[%clk 0:01:26]} 47. Kf1 {[%clk 0:00:09]}  Rxg3 {[%clk 0:01:24]} 48. Rf2 {[%clk 0:00:09]}  Rxf2+ {[%clk 0:01:19]} 49. Kxf2 {[%clk 0:00:10]} 0-1

[Event "January 2 Late 2024"]
[Site "https://www.chess.com"]
[Date "2024.01.02"]
[Round "3"]
[White "Shapiro, Viktor"]
[Black "Harish, Neeraj"]
[Result "1-0"]
[Board "197"]
[TimeControl "180+1"]
[WhiteFideId "4175700"]
[BlackFideId "30958130"]
[WhiteElo "2506"]
[BlackElo "2265"]
[WhiteTeam "RUS"]
[BlackTeam "USA"]
[WhiteClock "0:00:23"]
[BlackClock "0:00:08"]

1. c4 {[%clk 0:03:00]}  e6 {[%clk 0:02:57]} 2. Nc3 {[%clk 0:03:01]}  d5 {[%clk 0:02:56]} 3. d4 {[%clk 0:03:01]}  Nf6 {[%clk 0:02:56]} 4. Nf3 {[%clk 0:03:01]}  Be7 {[%clk 0:02:55]} 5. Bg5 {[%clk 0:03:01]}  h6 {[%clk 0:02:52]} 6. Bxf6 {[%clk 0:03:00]}  Bxf6 {[%clk 0:02:51]} 7. e3 {[%clk 0:03:00]}  O-O {[%clk 0:02:51]} 8. a3 {[%clk 0:02:58]}  b6 {[%clk 0:02:31]} 9. Rc1 {[%clk 0:02:57]}  Bb7 {[%clk 0:02:29]} 10. cxd5 {[%clk 0:02:57]}  exd5 {[%clk 0:02:26]} 11. Be2 {[%clk 0:02:57]}  c5 {[%clk 0:02:24]} 12. dxc5 {[%clk 0:02:57]}  bxc5 {[%clk 0:02:25]} 13. O-O {[%clk 0:02:57]}  d4 {[%clk 0:02:19]} 14. exd4 {[%clk 0:02:53]}  cxd4 {[%clk 0:02:20]} 15. Nb5 {[%clk 0:02:50]}  Nc6 {[%clk 0:02:16]} 16. a4 {[%clk 0:02:23]}  Rc8 {[%clk 0:01:57]} 17. Qd2 {[%clk 0:02:09]}  Qd7 {[%clk 0:01:43]} 18. Rfd1 {[%clk 0:02:08]}  Rfd8 {[%clk 0:01:41]} 19. Bd3 {[%clk 0:01:58]}  a6 {[%clk 0:01:21]} 20. Na3 {[%clk 0:01:57]}  Ne5 {[%clk 0:01:17]} 21. Nxe5 {[%clk 0:01:57]}  Bxe5 {[%clk 0:01:18]} 22. Nc4 {[%clk 0:01:58]}  Bb8 {[%clk 0:01:06]} 23. Bf1 {[%clk 0:01:30]}  Qg4 {[%clk 0:01:00]} 24. Qb4 {[%clk 0:01:14]}  Bd5 {[%clk 0:00:30]} 25. Nb6 {[%clk 0:01:08]}  Rxc1 {[%clk 0:00:29]} 26. Rxc1 {[%clk 0:01:07]}  Qf4 {[%clk 0:00:28]} 27. g3 {[%clk 0:01:04]}  Qxc1 {[%clk 0:00:28]} 28. Nxd5 {[%clk 0:01:03]}  Rxd5 {[%clk 0:00:19]} 29. Qxb8+ {[%clk 0:01:03]}  Kh7 {[%clk 0:00:19]} 30. Qb3 {[%clk 0:00:58]}  Rd8 {[%clk 0:00:17]} 31. Kg2 {[%clk 0:00:57]}  Qc6+ {[%clk 0:00:15]} 32. f3 {[%clk 0:00:56]}  Qd5 {[%clk 0:00:12]} 33. Bd3+ {[%clk 0:00:54]}  g6 {[%clk 0:00:11]} 34. Qb6 {[%clk 0:00:53]}  Rd6 {[%clk 0:00:09]} 35. Qc7 {[%clk 0:00:51]}  Kg7 {[%clk 0:00:09]} 36. h4 {[%clk 0:00:46]}  Rc6 {[%clk 0:00:09]} 37. Qf4 {[%clk 0:00:44]}  Rb6 {[%clk 0:00:07]} 38. g4 {[%clk 0:00:30]}  Rxb2+ {[%clk 0:00:07]} 39. Kg3 {[%clk 0:00:30]}  Rb3 {[%clk 0:00:05]} 40. Be4 {[%clk 0:00:29]}  Qd7 {[%clk 0:00:05]} 41. Qe5+ {[%clk 0:00:28]}  Kh7 {[%clk 0:00:05]} 42. h5 {[%clk 0:00:28]}  d3 {[%clk 0:00:03]} 43. hxg6+ {[%clk 0:00:27]}  fxg6 {[%clk 0:00:04]} 44. Qf6 {[%clk 0:00:26]}  Qg7 {[%clk 0:00:05]} 45. Qd6 {[%clk 0:00:24]}  Rb2 {[%clk 0:00:02]} 46. Qxd3 {[%clk 0:00:23]}  Qc7+ {[%clk 0:00:01]} 47. f4 {[%clk 0:00:21]}  Ra2 {[%clk 0:00:02]} 48. Bxg6+ {[%clk 0:00:21]}  Kg7 {[%clk 0:00:01]} 49. Be4 {[%clk 0:00:20]}  Qe7 {[%clk 0:00:02]} 50. Qd4+ {[%clk 0:00:20]}  Qf6 {[%clk 0:00:03]} 51. Qd7+ {[%clk 0:00:19]}  Kh8 {[%clk 0:00:03]} 52. Qc8+ {[%clk 0:00:19]}  Kg7 {[%clk 0:00:03]} 53. Qb7+ {[%clk 0:00:20]}  Qf7 {[%clk 0:00:03]} 54. Qxf7+ {[%clk 0:00:20]}  Kxf7 {[%clk 0:00:04]} 55. Bd5+ {[%clk 0:00:21]}  Kf6 {[%clk 0:00:04]} 56. Bxa2 {[%clk 0:00:21]}  Kg6 {[%clk 0:00:05]} 57. Kh4 {[%clk 0:00:22]}  Kf6 {[%clk 0:00:06]} 58. Bb1 {[%clk 0:00:22]}  Kg7 {[%clk 0:00:06]} 59. a5 {[%clk 0:00:22]}  Kf6 {[%clk 0:00:06]} 60. Bd3 {[%clk 0:00:23]}  Kg7 {[%clk 0:00:07]} 61. Bxa6 {[%clk 0:00:23]}  Kf6 {[%clk 0:00:08]} 62. Bd3 {[%clk 0:00:23]}  Kg7 {[%clk 0:00:08]} 63. a6 {[%clk 0:00:23]} 1-0

[Event "January 2 Late 2024"]
[Site "https://www.chess.com"]
[Date "2024.01.02"]
[Round "3"]
[White "Kaganskiy, Gleb"]
[Black "Reprintsev, Alexander"]
[Result "1/2-1/2"]
[Board "199"]
[TimeControl "180+1"]
[WhiteFideId "4132025"]
[BlackFideId "14100541"]
[WhiteElo "2258"]
[BlackElo "2497"]
[WhiteTeam "ISR"]
[BlackTeam "UKR"]
[WhiteClock "0:00:07"]
[BlackClock "0:00:10"]

1. a3 {[%clk 0:03:00]}  g6 {[%clk 0:02:45]} 2. d4 {[%clk 0:02:59]}  Bg7 {[%clk 0:02:38]} 3. Nf3 {[%clk 0:02:58]}  d5 {[%clk 0:02:31]} 4. e3 {[%clk 0:02:54]}  Bf5 {[%clk 0:02:29]} 5. c4 {[%clk 0:02:52]}  c6 {[%clk 0:02:27]} 6. cxd5 {[%clk 0:02:51]}  cxd5 {[%clk 0:02:26]} 7. Qb3 {[%clk 0:02:51]}  Nf6 {[%clk 0:02:06]} 8. Qxb7 {[%clk 0:02:48]}  Nbd7 {[%clk 0:02:06]} 9. Nc3 {[%clk 0:02:24]}  O-O {[%clk 0:02:03]} 10. Qb3 {[%clk 0:02:24]}  Rb8 {[%clk 0:02:02]} 11. Qd1 {[%clk 0:02:23]}  a5 {[%clk 0:02:01]} 12. Bd3 {[%clk 0:02:22]}  Bg4 {[%clk 0:01:51]} 13. O-O {[%clk 0:02:19]}  e5 {[%clk 0:01:51]} 14. dxe5 {[%clk 0:02:18]}  Nxe5 {[%clk 0:01:50]} 15. Be2 {[%clk 0:02:18]}  Nc4 {[%clk 0:01:40]} 16. Bxc4 {[%clk 0:02:07]}  dxc4 {[%clk 0:01:39]} 17. h3 {[%clk 0:02:04]}  Bf5 {[%clk 0:01:34]} 18. Nd4 {[%clk 0:02:00]}  Bd3 {[%clk 0:01:33]} 19. Re1 {[%clk 0:02:00]}  Re8 {[%clk 0:01:23]} 20. Nc6 {[%clk 0:01:59]}  Qb6 {[%clk 0:01:17]} 21. Nxb8 {[%clk 0:01:58]}  Rxb8 {[%clk 0:01:16]} 22. Ne2 {[%clk 0:01:19]}  Nd5 {[%clk 0:01:14]} 23. Nf4 {[%clk 0:01:16]}  Nxf4 {[%clk 0:01:13]} 24. exf4 {[%clk 0:01:17]}  Bxb2 {[%clk 0:01:11]} 25. Bxb2 {[%clk 0:01:17]}  Qxb2 {[%clk 0:01:11]} 26. Qc1 {[%clk 0:01:11]}  Qd4 {[%clk 0:01:09]} 27. Qe3 {[%clk 0:01:11]}  Qd7 {[%clk 0:00:50]} 28. Qe5 {[%clk 0:01:08]}  Rc8 {[%clk 0:00:46]} 29. Qxa5 {[%clk 0:01:04]}  c3 {[%clk 0:00:45]} 30. Rac1 {[%clk 0:01:03]}  c2 {[%clk 0:00:44]} 31. Qd2 {[%clk 0:00:58]}  Qb5 {[%clk 0:00:38]} 32. Re3 {[%clk 0:00:56]}  Bf5 {[%clk 0:00:37]} 33. Rc3 {[%clk 0:00:51]}  Rxc3 {[%clk 0:00:20]} 34. Qxc3 {[%clk 0:00:51]}  Qb1 {[%clk 0:00:21]} 35. Qe3 {[%clk 0:00:44]}  h5 {[%clk 0:00:20]} 36. Kh2 {[%clk 0:00:37]}  h4 {[%clk 0:00:20]} 37. a4 {[%clk 0:00:36]}  Kh7 {[%clk 0:00:20]} 38. a5 {[%clk 0:00:35]}  Qa2 {[%clk 0:00:20]} 39. Qd2 {[%clk 0:00:34]}  Qa3 {[%clk 0:00:20]} 40. Rxc2 {[%clk 0:00:28]}  Bxc2 {[%clk 0:00:20]} 41. Qxc2 {[%clk 0:00:28]}  Qxa5 {[%clk 0:00:20]} 42. Qe4 {[%clk 0:00:27]}  Qh5 {[%clk 0:00:19]} 43. g4 {[%clk 0:00:24]}  hxg3+ {[%clk 0:00:19]} 44. fxg3 {[%clk 0:00:25]}  Qc5 {[%clk 0:00:19]} 45. Qg2 {[%clk 0:00:25]}  Kg7 {[%clk 0:00:19]} 46. h4 {[%clk 0:00:25]}  Kh7 {[%clk 0:00:19]} 47. Qe2 {[%clk 0:00:23]}  Qf5 {[%clk 0:00:19]} 48. Kg2 {[%clk 0:00:23]}  Qd5+ {[%clk 0:00:19]} 49. Kf2 {[%clk 0:00:23]}  Qc5+ {[%clk 0:00:19]} 50. Qe3 {[%clk 0:00:23]}  Qc2+ {[%clk 0:00:19]} 51. Kf3 {[%clk 0:00:24]}  Qd1+ {[%clk 0:00:19]} 52. Kg2 {[%clk 0:00:22]}  Qc2+ {[%clk 0:00:19]} 53. Qf2 {[%clk 0:00:22]}  Qe4+ {[%clk 0:00:19]} 54. Kh2 {[%clk 0:00:22]}  Qf5 {[%clk 0:00:19]} 55. Qf3 {[%clk 0:00:21]}  Qc2+ {[%clk 0:00:19]} 56. Kh3 {[%clk 0:00:21]}  Qc8+ {[%clk 0:00:19]} 57. g4 {[%clk 0:00:21]}  Qc5 {[%clk 0:00:19]} 58. h5 {[%clk 0:00:20]}  gxh5 {[%clk 0:00:18]} 59. gxh5 {[%clk 0:00:20]}  Qf5+ {[%clk 0:00:18]} 60. Qg4 {[%clk 0:00:20]}  Qd3+ {[%clk 0:00:19]} 61. Kh4 {[%clk 0:00:21]}  Qd8+ {[%clk 0:00:18]} 62. Qg5 {[%clk 0:00:20]}  Qd3 {[%clk 0:00:18]} 63. h6 {[%clk 0:00:19]}  Qc3 {[%clk 0:00:13]} 64. Qf5+ {[%clk 0:00:16]}  Kxh6 {[%clk 0:00:13]} 65. Qxf7 {[%clk 0:00:15]}  Qe1+ {[%clk 0:00:13]} 66. Kg4 {[%clk 0:00:15]}  Qe2+ {[%clk 0:00:13]} 67. Kg3 {[%clk 0:00:14]}  Qe3+ {[%clk 0:00:13]} 68. Kg2 {[%clk 0:00:14]}  Qe2+ {[%clk 0:00:13]} 69. Kg3 {[%clk 0:00:14]}  Qe3+ {[%clk 0:00:13]} 70. Kg4 {[%clk 0:00:13]}  Qe2+ {[%clk 0:00:14]} 71. Kf5 {[%clk 0:00:13]}  Qd3+ {[%clk 0:00:13]} 72. Ke5 {[%clk 0:00:12]}  Qe3+ {[%clk 0:00:13]} 73. Kd6 {[%clk 0:00:11]}  Qd4+ {[%clk 0:00:13]} 74. Ke7 {[%clk 0:00:09]}  Qb4+ {[%clk 0:00:12]} 75. Ke8 {[%clk 0:00:07]}  Qb8+ {[%clk 0:00:10]} 76. Ke7 {[%clk 0:00:07]}  Qc7+ {[%clk 0:00:10]} 77. Ke6 {[%clk 0:00:06]}  Qc4+ {[%clk 0:00:10]} 78. Ke7 {[%clk 0:00:06]}  Qc7+ {[%clk 0:00:10]} 79. Ke8 {[%clk 0:00:06]}  Qc8+ {[%clk 0:00:10]} 80. Ke7 {[%clk 0:00:07]}  Qc7+ {[%clk 0:00:10]} 1/2-1/2

[Event "January 2 Late 2024"]
[Site "https://www.chess.com"]
[Date "2024.01.02"]
[Round "3"]
[White "Burdalev, Kirill"]
[Black "Mesquita, Eduardo Barbosa"]
[Result "1-0"]
[Board "202"]
[TimeControl "180+1"]
[WhiteFideId "14121913"]
[BlackFideId "22757163"]
[WhiteElo "2246"]
[BlackElo "2482"]
[WhiteTeam "CZE"]
[BlackTeam "BRA"]
[WhiteClock "0:01:05"]
[BlackClock "0:01:56"]

1. d4 {[%clk 0:02:55]}  d5 {[%clk 0:03:00]} 2. c4 {[%clk 0:02:50]}  e6 {[%clk 0:03:00]} 3. Nf3 {[%clk 0:02:50]}  Nf6 {[%clk 0:03:00]} 4. Nc3 {[%clk 0:02:51]}  a6 {[%clk 0:03:00]} 5. c5 {[%clk 0:02:51]}  b6 {[%clk 0:03:00]} 6. cxb6 {[%clk 0:02:51]}  c5 {[%clk 0:03:01]} 7. Bf4 {[%clk 0:02:49]}  Qxb6 {[%clk 0:02:59]} 8. Na4 {[%clk 0:02:42]}  Qb4+ {[%clk 0:02:55]} 9. Bd2 {[%clk 0:02:41]}  Qb7 {[%clk 0:02:54]} 10. Nxc5 {[%clk 0:02:34]}  Bxc5 {[%clk 0:02:53]} 11. dxc5 {[%clk 0:02:35]}  Qxb2 {[%clk 0:02:51]} 12. Rb1 {[%clk 0:02:35]}  Qxa2 {[%clk 0:02:50]} 13. Bc3 {[%clk 0:02:21]}  Ne4 {[%clk 0:02:44]} 14. Bxg7 {[%clk 0:02:15]}  Rg8 {[%clk 0:02:35]} 15. Ra1 {[%clk 0:01:55]}  Qc4 {[%clk 0:02:36]} 16. Bd4 {[%clk 0:01:39]}  Qb4+ {[%clk 0:02:35]} 17. Nd2 {[%clk 0:01:34]}  Qxd4 {[%clk 0:02:34]} 18. e3 {[%clk 0:01:34]}  Qc3 {[%clk 0:02:19]} 19. Rc1 {[%clk 0:01:30]}  Qb4 {[%clk 0:02:18]} 20. Rb1 {[%clk 0:01:17]}  Qa5 {[%clk 0:02:15]} 21. Ra1 {[%clk 0:01:17]}  Qxc5 {[%clk 0:02:14]} 22. Rc1 {[%clk 0:01:17]}  Qb4 {[%clk 0:02:12]} 23. Rxc8+ {[%clk 0:01:16]}  Kd7 {[%clk 0:02:10]} 24. Rxg8 {[%clk 0:01:14]}  Ra7 {[%clk 0:02:10]} 25. Bd3 {[%clk 0:01:11]}  Rc7 {[%clk 0:01:58]} 26. Bxe4 {[%clk 0:01:10]}  d4 {[%clk 0:01:56]} 27. O-O {[%clk 0:01:08]}  dxe3 {[%clk 0:01:56]} 28. Nf3+ {[%clk 0:01:06]}  Ke7 {[%clk 0:01:56]} 29. Qd8# {[%clk 0:01:05]} 1-0

[Event "January 2 Late 2024"]
[Site "https://www.chess.com"]
[Date "2024.01.02"]
[Round "3"]
[White "Doublekk14"]
[Black "Baules Rodriguez, Jorge Luis"]
[Result "1-0"]
[Board "207"]
[TimeControl "180+1"]
[BlackFideId "6600247"]
[WhiteElo "2234"]
[BlackElo "2444"]
[BlackTeam "PAN"]
[WhiteClock "0:00:28"]
[BlackClock "0:00:00"]

1. c4 {[%clk 0:03:00]}  Nf6 {[%clk 0:02:58]} 2. Nc3 {[%clk 0:02:57]}  g6 {[%clk 0:02:57]} 3. e3 {[%clk 0:02:57]}  Bg7 {[%clk 0:02:56]} 4. d4 {[%clk 0:02:57]}  d5 {[%clk 0:02:55]} 5. Nf3 {[%clk 0:02:52]}  O-O {[%clk 0:02:54]} 6. Be2 {[%clk 0:02:44]}  c5 {[%clk 0:02:53]} 7. cxd5 {[%clk 0:02:42]}  Nxd5 {[%clk 0:02:47]} 8. e4 {[%clk 0:02:41]}  Nxc3 {[%clk 0:02:46]} 9. bxc3 {[%clk 0:02:41]}  cxd4 {[%clk 0:02:46]} 10. cxd4 {[%clk 0:02:37]}  Nc6 {[%clk 0:02:46]} 11. Be3 {[%clk 0:02:13]}  Bg4 {[%clk 0:02:28]} 12. e5 {[%clk 0:02:12]}  Qa5+ {[%clk 0:02:22]} 13. Qd2 {[%clk 0:02:01]}  Rfd8 {[%clk 0:01:51]} 14. Qxa5 {[%clk 0:01:55]}  Nxa5 {[%clk 0:01:51]} 15. O-O {[%clk 0:01:54]}  Rac8 {[%clk 0:01:48]} 16. Rfc1 {[%clk 0:01:50]}  h6 {[%clk 0:01:30]} 17. h3 {[%clk 0:01:49]}  Be6 {[%clk 0:01:30]} 18. Nd2 {[%clk 0:01:33]}  Bd5 {[%clk 0:01:22]} 19. f4 {[%clk 0:01:21]}  b6 {[%clk 0:01:15]} 20. Kf2 {[%clk 0:01:20]}  e6 {[%clk 0:01:09]} 21. Ba6 {[%clk 0:01:09]}  Rxc1 {[%clk 0:01:03]} 22. Rxc1 {[%clk 0:01:08]}  Bxa2 {[%clk 0:01:02]} 23. Rc7 {[%clk 0:01:07]}  Ra8 {[%clk 0:00:56]} 24. Be2 {[%clk 0:01:01]}  Bd5 {[%clk 0:00:54]} 25. Bf3 {[%clk 0:00:58]}  Bf8 {[%clk 0:00:36]} 26. Ne4 {[%clk 0:00:55]}  Bg7 {[%clk 0:00:29]} 27. Nd6 {[%clk 0:00:52]}  f5 {[%clk 0:00:19]} 28. Bxd5 {[%clk 0:00:49]}  exd5 {[%clk 0:00:20]} 29. e6 {[%clk 0:00:48]}  Bf8 {[%clk 0:00:16]} 30. e7 {[%clk 0:00:48]}  Bxe7 {[%clk 0:00:16]} 31. Rxe7 {[%clk 0:00:47]}  Nc4 {[%clk 0:00:17]} 32. Nxc4 {[%clk 0:00:43]}  dxc4 {[%clk 0:00:18]} 33. d5 {[%clk 0:00:43]}  b5 {[%clk 0:00:11]} 34. d6 {[%clk 0:00:42]}  Rd8 {[%clk 0:00:11]} 35. Bc5 {[%clk 0:00:40]}  c3 {[%clk 0:00:10]} 36. Re3 {[%clk 0:00:37]}  Kf7 {[%clk 0:00:07]} 37. Rxc3 {[%clk 0:00:36]}  a6 {[%clk 0:00:07]} 38. Bb4 {[%clk 0:00:35]}  Ke6 {[%clk 0:00:07]} 39. Rc6 {[%clk 0:00:35]}  Ra8 {[%clk 0:00:07]} 40. Rc7 {[%clk 0:00:31]}  a5 {[%clk 0:00:07]} 41. Re7+ {[%clk 0:00:28]}  Kd5 {[%clk 0:00:00]} 42. d7 {[%clk 0:00:28]} 1-0

[Event "January 2 Late 2024"]
[Site "https://www.chess.com"]
[Date "2024.01.02"]
[Round "3"]
[White "Suvorov, Alexander"]
[Black "yujiarun18"]
[Result "1-0"]
[Board "212"]
[TimeControl "180+1"]
[WhiteFideId "12977063"]
[WhiteElo "2410"]
[BlackElo "2170"]
[WhiteTeam "GER"]
[WhiteClock "0:00:51"]
[BlackClock "0:00:26"]

1. Nf3 {[%clk 0:03:00]}  d5 {[%clk 0:02:59]} 2. e3 {[%clk 0:02:59]}  Nf6 {[%clk 0:02:59]} 3. b3 {[%clk 0:02:59]}  g6 {[%clk 0:02:56]} 4. Bb2 {[%clk 0:02:59]}  Bg7 {[%clk 0:02:56]} 5. c4 {[%clk 0:02:57]}  c6 {[%clk 0:02:55]} 6. Be2 {[%clk 0:02:55]}  Be6 {[%clk 0:02:48]} 7. O-O {[%clk 0:02:53]}  O-O {[%clk 0:02:47]} 8. Nc3 {[%clk 0:02:53]}  Nbd7 {[%clk 0:02:38]} 9. Nd4 {[%clk 0:02:52]}  Nc5 {[%clk 0:02:36]} 10. b4 {[%clk 0:02:48]}  Na6 {[%clk 0:02:17]} 11. Nxe6 {[%clk 0:02:46]}  fxe6 {[%clk 0:02:16]} 12. a3 {[%clk 0:02:24]}  e5 {[%clk 0:02:10]} 13. cxd5 {[%clk 0:02:09]}  cxd5 {[%clk 0:02:08]} 14. Rc1 {[%clk 0:02:04]}  Nc7 {[%clk 0:02:05]} 15. Qb3 {[%clk 0:01:58]}  e6 {[%clk 0:02:01]} 16. Na4 {[%clk 0:01:56]}  b6 {[%clk 0:01:57]} 17. Bxe5 {[%clk 0:01:53]}  Nce8 {[%clk 0:01:47]} 18. Nc3 {[%clk 0:01:50]}  Rc8 {[%clk 0:01:42]} 19. Nb5 {[%clk 0:01:42]}  Rf7 {[%clk 0:01:35]} 20. Nd4 {[%clk 0:01:38]}  Nd6 {[%clk 0:01:28]} 21. Nxe6 {[%clk 0:01:37]}  Qe8 {[%clk 0:01:24]} 22. Rxc8 {[%clk 0:01:18]}  Nxc8 {[%clk 0:01:20]} 23. Bxf6 {[%clk 0:01:17]}  Bxf6 {[%clk 0:01:10]} 24. Qxd5 {[%clk 0:01:12]}  Rd7 {[%clk 0:01:06]} 25. Qb3 {[%clk 0:01:07]}  Kh8 {[%clk 0:01:03]} 26. d4 {[%clk 0:01:03]}  Nd6 {[%clk 0:01:03]} 27. Rc1 {[%clk 0:01:02]}  h5 {[%clk 0:01:02]} 28. Nf4 {[%clk 0:00:57]}  Kh7 {[%clk 0:01:01]} 29. Bd3 {[%clk 0:00:57]}  Ne4 {[%clk 0:00:58]} 30. Qc2 {[%clk 0:00:52]}  Re7 {[%clk 0:00:26]} 31. Nd5 {[%clk 0:00:51]} 1-0

[Event "January 2 Late 2024"]
[Site "https://www.chess.com"]
[Date "2024.01.02"]
[Round "3"]
[White "louadasme"]
[Black "Unuk, Laura"]
[Result "0-1"]
[Board "214"]
[TimeControl "180+1"]
[BlackFideId "14609215"]
[WhiteElo "2144"]
[BlackElo "2394"]
[BlackTeam "SLO"]
[WhiteClock "0:00:02"]
[BlackClock "0:00:17"]

1. e4 {[%clk 0:03:00]}  d5 {[%clk 0:02:56]} 2. exd5 {[%clk 0:03:00]}  Qxd5 {[%clk 0:02:57]} 3. Nc3 {[%clk 0:03:00]}  Qe6+ {[%clk 0:02:57]} 4. Be2 {[%clk 0:02:57]}  c6 {[%clk 0:02:58]} 5. Nf3 {[%clk 0:02:57]}  g6 {[%clk 0:02:58]} 6. O-O {[%clk 0:02:57]}  Bg7 {[%clk 0:02:59]} 7. d4 {[%clk 0:02:57]}  Nf6 {[%clk 0:02:58]} 8. Bf4 {[%clk 0:02:48]}  O-O {[%clk 0:02:58]} 9. Qd2 {[%clk 0:02:47]}  Rd8 {[%clk 0:02:35]} 10. Rad1 {[%clk 0:02:43]}  Qf5 {[%clk 0:02:21]} 11. Bd3 {[%clk 0:02:37]}  Qh5 {[%clk 0:02:20]} 12. Rfe1 {[%clk 0:02:35]}  Bg4 {[%clk 0:02:07]} 13. Be2 {[%clk 0:02:27]}  Nd5 {[%clk 0:01:59]} 14. Nxd5 {[%clk 0:02:25]}  Qxd5 {[%clk 0:02:00]} 15. c4 {[%clk 0:02:23]}  Qf5 {[%clk 0:01:48]} 16. h3 {[%clk 0:02:05]}  Bxf3 {[%clk 0:01:46]} 17. Bxf3 {[%clk 0:02:04]}  Rxd4 {[%clk 0:01:47]} 18. Rxe7 {[%clk 0:01:52]}  Na6 {[%clk 0:01:24]} 19. Qxd4 {[%clk 0:01:21]}  Bxd4 {[%clk 0:01:25]} 20. Rxd4 {[%clk 0:01:21]}  Qf6 {[%clk 0:01:13]} 21. Rde4 {[%clk 0:00:31]}  g5 {[%clk 0:00:30]} 22. Bg3 {[%clk 0:00:26]}  Kf8 {[%clk 0:00:26]} 23. Rd7 {[%clk 0:00:21]}  Nc5 {[%clk 0:00:26]} 24. Rc7 {[%clk 0:00:17]}  Nxe4 {[%clk 0:00:25]} 25. Bxe4 {[%clk 0:00:15]}  Re8 {[%clk 0:00:24]} 26. Bxh7 {[%clk 0:00:14]}  Qxb2 {[%clk 0:00:24]} 27. Kh2 {[%clk 0:00:12]}  Qxa2 {[%clk 0:00:22]} 28. h4 {[%clk 0:00:09]}  gxh4 {[%clk 0:00:21]} 29. Bf4 {[%clk 0:00:09]}  Kg7 {[%clk 0:00:17]} 30. Bf5 {[%clk 0:00:02]}  Qxc4 {[%clk 0:00:17]} 0-1

[Event "January 2 Late 2024"]
[Site "https://www.chess.com"]
[Date "2024.01.02"]
[Round "3"]
[White "Travkina, Anastasia"]
[Black "Aung Thant Zin"]
[Result "1-0"]
[Board "217"]
[TimeControl "180+1"]
[WhiteFideId "24129151"]
[BlackFideId "13000063"]
[WhiteElo "2388"]
[BlackElo "2115"]
[WhiteTeam "RUS"]
[BlackTeam "MYA"]
[WhiteClock "0:00:30"]
[BlackClock "0:00:41"]

1. e4 {[%clk 0:03:00]}  c5 {[%clk 0:02:55]} 2. Nf3 {[%clk 0:03:00]}  Nc6 {[%clk 0:02:56]} 3. d4 {[%clk 0:03:01]}  cxd4 {[%clk 0:02:56]} 4. Nxd4 {[%clk 0:03:02]}  Nf6 {[%clk 0:02:56]} 5. Nc3 {[%clk 0:03:02]}  d6 {[%clk 0:02:55]} 6. Bg5 {[%clk 0:03:01]}  e6 {[%clk 0:02:54]} 7. Qd2 {[%clk 0:03:02]}  a6 {[%clk 0:02:55]} 8. O-O-O {[%clk 0:03:01]}  h6 {[%clk 0:02:55]} 9. Bh4 {[%clk 0:02:56]}  Nxe4 {[%clk 0:02:54]} 10. Nxe4 {[%clk 0:02:54]}  Qxh4 {[%clk 0:02:52]} 11. Nxc6 {[%clk 0:02:43]}  Qxe4 {[%clk 0:02:48]} 12. Nd4 {[%clk 0:02:42]}  Qd5 {[%clk 0:02:27]} 13. Bd3 {[%clk 0:02:37]}  Qxa2 {[%clk 0:02:18]} 14. c3 {[%clk 0:02:34]}  Bd7 {[%clk 0:02:11]} 15. Rhe1 {[%clk 0:02:29]}  Be7 {[%clk 0:02:09]} 16. f4 {[%clk 0:02:20]}  Ba4 {[%clk 0:02:07]} 17. Bb1 {[%clk 0:02:17]}  Qd5 {[%clk 0:02:04]} 18. Bc2 {[%clk 0:01:49]}  Bxc2 {[%clk 0:02:02]} 19. Qxc2 {[%clk 0:01:50]}  Qa5 {[%clk 0:01:58]} 20. Nxe6 {[%clk 0:01:43]}  fxe6 {[%clk 0:01:44]} 21. Qg6+ {[%clk 0:01:42]}  Kd8 {[%clk 0:01:44]} 22. Qxe6 {[%clk 0:01:36]}  Qc7 {[%clk 0:01:44]} 23. Rd4 {[%clk 0:01:08]}  Qd7 {[%clk 0:01:31]} 24. Qf7 {[%clk 0:00:45]}  Bf6 {[%clk 0:01:25]} 25. Rxd6 {[%clk 0:00:46]}  Qxd6 {[%clk 0:01:23]} 26. Rd1 {[%clk 0:00:46]}  Qxd1+ {[%clk 0:01:23]} 27. Kxd1 {[%clk 0:00:47]}  b5 {[%clk 0:01:18]} 28. g4 {[%clk 0:00:47]}  Rc8 {[%clk 0:01:14]} 29. g5 {[%clk 0:00:46]}  Rc7 {[%clk 0:01:04]} 30. Qg6 {[%clk 0:00:37]}  Rd7+ {[%clk 0:01:01]} 31. Kc1 {[%clk 0:00:37]}  hxg5 {[%clk 0:01:00]} 32. fxg5 {[%clk 0:00:37]}  Be5 {[%clk 0:00:59]} 33. Qb6+ {[%clk 0:00:33]}  Bc7 {[%clk 0:00:52]} 34. Qxa6 {[%clk 0:00:34]}  b4 {[%clk 0:00:51]} 35. Qa8+ {[%clk 0:00:32]}  Ke7 {[%clk 0:00:51]} 36. Qxh8 {[%clk 0:00:33]}  Kf7 {[%clk 0:00:49]} 37. Qh5+ {[%clk 0:00:31]}  Ke6 {[%clk 0:00:49]} 38. Qg4+ {[%clk 0:00:31]}  Ke7 {[%clk 0:00:49]} 39. Qe4+ {[%clk 0:00:31]}  Kf7 {[%clk 0:00:49]} 40. g6+ {[%clk 0:00:31]}  Kf6 {[%clk 0:00:48]} 41. Qxb4 {[%clk 0:00:31]}  Bf4+ {[%clk 0:00:41]} 42. Qxf4+ {[%clk 0:00:30]} 1-0